[Event "15th Chennai GM Open 2025"]
[Site "Chennai"]
[Date "2025.01.07"]
[Round "8.14"]
[White "Sathvik Adiga"]
[Black "Sneha Halder"]
[Result "1/2-1/2"]
[ECO "C42"]
[WhiteElo "2395"]
[BlackElo "2105"]
[Annotator "TA"]
[PlyCount "164"]
[EventDate "2025.01.02"]
[EventType "swiss"]
[EventCountry "IND"]
[SourceTitle "playchess.com"]
[Source "ChessBase"]
[SourceQuality "1"]
[TimeControl "5400+30"]

{[%evp 17,164,35,32,26,46,31,49,31,30,0,35,35,27,30,21,14,16,-3,0,0,12,15,22,-13,0,0,30,15,50,2,26,31,133,135,128,136,141,136,134,116,128,96,141,87,79,9,72,0,0,0,0,0,0,-5,31,30,8,23,16,-11,-9,-15,0,-68,94,92,94,0,67,-100,76,84,102,-39,-65,-236,-116,-112,-87,-101,-102,-105,-71,-61,-61,-65,-65,-72,-65,-68,-60,-88,-68,-74,-8,-8,-8,-8,0,-92,-92,-97,-97,-114,-99,-327,-8,-8,-8,-8,-8,-52,-52,-52,-52,-52,-52,-52,-52,-52,-8,-8,-8,-26,-26,-26,-8,-8,-8,-8,-8,-8,-8,-8,-8,-8,-8,-8,-8,-8,0,-8,-8,-8,-8,-8,0,-8,0]} 1. e4 {[%emt 0:00:02]} e5 {[%emt 0:01:45]} 2. Nf3 {[%emt 0:00:08]} Nf6 {[%emt 0:00:07]} 3. Nxe5 {[%emt 0:00:03]} d6 {[%emt 0:00:04]} 4. Nf3 {[%emt 0:00:03]} Nxe4 {[%emt 0:00:43]} 5. Nc3 {[%emt 0:00:04]} Nxc3 {[%emt 0:00:09]} 6. dxc3 {[%emt 0:00:02]} Be7 {[%emt 0:00:08]} 7. Be3 {[%emt 0:00:05]} Nc6 {[%emt 0:02:10]} 8. Qd2 {[%emt 0:00:12]} Be6 {[%emt 0:00:26]} 9. O-O-O {[%emt 0:00:12]} a6 {[%emt 0:00:36]} 10. h4 {[%emt 0:01:18]} Qd7 {[%emt 0:01:38]} 11. a3 {[%emt 0:08:17]} O-O-O {[%emt 0:05:34]} 12. Ng5 {[%emt 0:01:41] White is slightly better.} Ne5 {[%emt 0:08:37]} 13. Qd4 {[%emt 0:28:07]} Nc6 {[%emt 0:18:12] Repels Qa7} 14. Qf4 {[%emt 0:07:40]} (14. Qxg7 $2 Rdg8 $19) 14... Ne5 {[%emt 0:16:19]} 15. Nxe6 {[%emt 0:04:29]} Qxe6 {[%emt 0:00:10]} 16. Kb1 {[%emt 0:01:02]} Qg4 {[%emt 0:01:08] Repels g3} 17. f3 {[%emt 0:04:48]} Qxf4 {[%emt 0:00:42]} 18. Bxf4 {[%emt 0:00:02]} Bf6 {[%emt 0:00:54]} 19. h5 {[%emt 0:02:20]} h6 {[%emt 0:00:47]} 20. Rh3 {[%emt 0:05:33]} Rhe8 {[%emt 0:02:26]} 21. Bc1 {[%emt 0:04:14]} Nd7 {[%emt 0:06:19]} 22. g4 {[%emt 0:03:51]} Nc5 {[%emt 0:01:58]} 23. Bc4 {[%emt 0:07:37]} (23. c4 $14 {should be considered.}) 23... Re7 {[%emt 0:02:22][%cal Od6d5]} 24. f4 {[%emt 0:03:44] Hoping for g5.} c6 {[%emt 0:13:32]} (24... Ne4 $14) 25. g5 $16 {[%emt 0:05:59]} hxg5 {[%emt 0:00:01]} 26. fxg5 {[%emt 0:00:01]} Be5 {[%emt 0:00:01]} 27. h6 {[%emt 0:01:03]} d5 {[%emt 0:01:31]} 28. Be2 {[%emt 0:00:07]} Ne4 {[%emt 0:01:40]} 29. Be3 {[%emt 0:02:34] Wards off Nf2} Kc7 {[%emt 0:08:19]} 30. Bg4 {[%emt 0:03:38] This pair of bishops is nice.} (30. h7 $142 Rh8 31. Rf1) 30... Rh8 {[%emt 0:01:04]} 31. Kc1 {[%emt 0:02:38]} ({Don't play} 31. hxg7 Bxg7 32. Rdh1 Rxh3 33. Rxh3 Be5 $14) (31. Rg1 $16) 31... Nd6 {[%emt 0:01:40] Against Bf5} (31... gxh6 $11 32. gxh6 Ng3) 32. Kb1 {[%emt 0:01:16] White is more active.} (32. Rf1 $16) 32... gxh6 $11 {[%emt 0:00:51]} 33. gxh6 {[%emt 0:01:14]} f5 $1 {[%emt 0:00:11]} 34. Bf3 {[%emt 0:01:34]} f4 {[%emt 0:00:24]} 35. Bc1 {[%emt 0:00:08]} Ne4 {[%emt 0:01:43] aiming for ...Nf2.} 36. Rh5 {[%emt 0:01:32][%cal Oh5e5] Threatens to win with Rxe5!} Bd6 {[%emt 0:01:02] [#]} 37. c4 $1 {[%emt 0:00:23]} dxc4 {[%emt 0:02:11]} 38. Rh2 {[%emt 0:01:06]} Ng5 {[%emt 0:00:56]} 39. Bg4 {[%emt 0:00:26][%cal Od1d6]} Nf7 {[%emt 0:00:52]} 40. h7 {[%emt 0:00:19]} ({White should play} 40. Rdh1 $1 $11) 40... Ne5 $2 {[%emt 0:00:32]} (40... f3 $1 $15 {stays ahead.} 41. Rh3 f2) 41. Bf5 $16 {[%emt 0:00:07][%mdl 1024] White has strong compensation.} ({But not} 41. Bxf4 $6 Rhxh7 42. Re2 c3 $15) 41... Rf7 {[%emt 0:00:01]} 42. Be4 {[%emt 0:00:10]} (42. Rh5 $16 Nd7 43. Bd2 (43. Rxd6 Kxd6 44. Bxf4+ Ke7 $11)) 42... f3 {[%emt 0:00:10]} ({Better is} 42... Ng4 $11 43. Rh4 Nf6) 43. Rf1 $2 {[%emt 0:01:08]} (43. Rh4 $1 $14 {keeps the upper hand.}) 43... Nd7 $2 {[%emt 0:01:24]} (43... Ng4 $1 $17 {[%cal Rg4h2] keeps the pressure on.} 44. Rh3 f2) 44. Rh3 {[%emt 0:00:46]} f2 {[%emt 0:00:17]} 45. Be3 {[%emt 0:00:35]} (45. Bd2 $1 $16) 45... Bc5 $1 $15 {[%emt 0:00:33]} 46. Kc1 $2 {[%emt 0:00:32]} ({White should try} 46. Bd2 $15 Bd4 47. c3) 46... Bxe3+ {[%emt 0:00:24]} (46... Re7 $1 $19 {[%cal Re7e4] is more deadly.} 47. Bxf2 Rxe4 48. Bxc5 Nxc5) 47. Rxe3 $17 {[%emt 0:00:02]} Re7 {[%emt 0:00:20]} 48. Kd2 {[%emt 0:00:56]} Nf6 {[%emt 0:00:10][%csl LRe4,LRh7]} 49. Bg6 {[%emt 0:00:10]} Rxe3 {[%emt 0:00:41]} (49... Rg7 {is more complex.} 50. Rxf2 Rxg6 51. Re6 Rd8+) 50. Kxe3 {[%emt 0:00:02]} Nxh7 {[%emt 0:00:24]} (50... b5 {feels hotter.} 51. a4 Nxh7 52. Rxf2 Ng5) 51. Rxf2 {[%emt 0:00:04][%mdl 4096] Endgame. KRB-KRN} Ng5 {[%emt 0:00:04] Repels Rf7+} 52. Rf6 {[%emt 0:00:12]} Rh4 {[%emt 0:00:45]} 53. Bf5 {[%emt 0:00:18]} Kb6 $1 {[%emt 0:01:02]} 54. Rf8 {[%emt 0:00:38]} Kc5 {[%emt 0:00:21]} 55. Bc8 {[%emt 0:00:09] [#]} Ne4 {[%emt 0:00:46]} (55... Re4+ $1 $17 56. Kd2 Kb6) 56. Bxb7 $11 {[%emt 0:01:10]} Nd6 {[%emt 0:00:02] Repels Rc8} 57. Bxa6 {[%emt 0:00:29]} Rh3+ {[%emt 0:00:01]} 58. Kf4 {[%emt 0:01:19]} (58. Kd2 $11 {keeps the balance.}) 58... Rh2 $17 {[%emt 0:00:29] Strongly threatening ...Rf2+.} 59. Rb8 {[%emt 0:00:04]} Rxc2 {[%emt 0:00:34]} 60. Ke5 {[%emt 0:00:06]} Re2+ {[%emt 0:00:07]} 61. Kf6 $2 {[%emt 0:00:05] [#]} (61. Kf4 $17) 61... Re8 $2 {[%emt 0:00:35]} (61... Nb5 $1 $19 62. a4 Nc7 63. b4+ Kd4 64. Bxc4 Kxc4) 62. Rxe8 $11 {[%emt 0:01:21]} Nxe8+ {[%emt 0:00:00] KB-KN} 63. Ke7 {[%emt 0:00:07]} Nc7 {[%emt 0:00:38]} 64. Bb7 {[%emt 0:01:29]} Nd5+ {[%emt 0:01:08]} 65. Kd7 {[%emt 0:00:05]} Nb6+ {[%emt 0:00:15]} 66. Kc7 {[%emt 0:00:08]} Na4 {[%emt 0:00:02]} 67. Bxc6 {[%emt 0:00:08]} Nxb2 {[%emt 0:00:02] ( -> ...Kd4)} 68. Be4 {[%emt 0:00:32]} Nd3 {[%emt 0:01:06] White must now prevent ...Kd4.} 69. a4 {[%emt 0:01:08]} Kb4 {[%emt 0:00:33]} 70. Kc6 {[%emt 0:00:23]} Kxa4 {[%emt 0:00:48]} 71. Kd5 {[%emt 0:00:05]} Kb4 {[%emt 0:00:05]} 72. Kd4 {[%emt 0:00:09] The position is equal.} Nc1 {[%emt 0:00:30]} 73. Bc2 {[%emt 0:01:01]} Nb3+ {[%emt 0:00:14]} 74. Kd5 {[%emt 0:00:31]} c3 {[%emt 0:00:33]} 75. Bd1 {[%emt 0:00:26]} Na5 {[%emt 0:00:43]} 76. Kd4 {[%emt 0:00:16]} Nc4 {[%emt 0:00:09]} 77. Bc2 {[%emt 0:00:18]} Nb2 {[%emt 0:00:30]} 78. Kd5 {[%emt 0:00:27]} Nc4 {[%emt 0:00:34]} 79. Kd4 {[%emt 0:00:01] Dodges Ne3} Na3 {[%emt 0:00:03]} 80. Kd3 {[%emt 0:00:16]} Nb5 {[%emt 0:00:23]} 81. Bd1 {[%emt 0:00:05]} Na3 {[%emt 0:00:27]} 82. Bc2 {[%emt 0:00:05]} Nc4 {[%emt 0:00:46] Weighted Error Value: White=0.32/Black=0.27 (precise) .  Loses game:     	White=2     	---        Missed win:     	---       	Black=1      Mistake:       	White=9     	Black=7      Inaccurate:     	White=5     	Black=7      OK:         	White=26    	Black=25     Best:        	White=8     	Black=6      Strong:       	---       	Black=3} 1/2-1/2

[Event "15th Chennai GM Open 2025"]
[Site "Chennai"]
[Date "2025.01.07"]
[Round "8.15"]
[White "Rosh Jain"]
[Black "Setumadhav Yellumahanthi"]
[Result "1/2-1/2"]
[ECO "C41"]
[WhiteElo "2071"]
[BlackElo "2334"]
[Annotator "TA"]
[PlyCount "80"]
[EventDate "2025.01.02"]
[EventType "swiss"]
[EventCountry "IND"]
[SourceTitle "playchess.com"]
[Source "ChessBase"]
[SourceQuality "1"]
[TimeControl "5400+30"]

{[%evp 17,80,34,37,38,56,60,50,34,38,47,47,41,34,41,46,12,53,66,60,54,65,27,35,26,22,31,31,31,38,22,30,21,45,43,43,45,54,41,66,9,12,13,24,0,0,0,0,0,0,0,0,0,0,0,0,-10,0,0,0,0,0,0,0,0,0]} 1. e4 {[%emt 0:00:04]} d6 {[%emt 0:02:04]} 2. d4 {[%emt 0:00:11]} Nf6 {[%emt 0:00:04]} 3. Nc3 {[%emt 0:00:09]} e5 {[%emt 0:00:14]} 4. Nf3 {[%emt 0:00:18]} Nbd7 {[%emt 0:00:50]} 5. Bc4 {[%emt 0:00:35]} Be7 {[%emt 0:00:10]} 6. O-O {[%emt 0:00:45]} O-O {[%emt 0:00:10]} 7. a4 {[%emt 0:00:04]} c6 {[%emt 0:00:19]} 8. h3 {[%emt 0:00:01]} h6 {[%emt 0:00:17]} 9. Re1 {[%emt 0:00:06]} Re8 {[%emt 0:01:20]} 10. a5 {[%emt 0:00:01]} Rb8 {[%emt 0:02:50]} 11. Be3 {[%emt 0:03:21]} b5 {[%emt 0:02:04]} 12. axb6 {[%emt 0:01:00]} axb6 {[%emt 0:00:11]} 13. d5 {[%emt 0:07:25]} Bb7 {[%emt 0:07:50]} 14. Ra7 {[%emt 0:20:08][%cal Oa7b7]} Qc8 {[%emt 0:12:41]} 15. dxc6 {[%emt 0:15:28]} Bxc6 {[%emt 0:01:19][%cal Ob6b5]} 16. Qd3 {[%emt 0:01:38]} Ra8 {[%emt 0:14:34]} 17. Rea1 {[%emt 0:01:13]} Rxa7 {[%emt 0:02:22]} 18. Rxa7 {[%emt 0:00:04]} Qb8 {[%emt 0:02:09]} 19. Ra2 {[%emt 0:03:53][%cal Oc4f7]} Nc5 {[%emt 0:26:46]} 20. Bxc5 {[%emt 0:02:03]} dxc5 {[%emt 0:00:02]} 21. Bb5 {[%emt 0:10:16][%cal Bc4b5,Bb5a4,Ba4b3,Bb3d5][%mdl 32]} Rd8 {[%emt 0:08:19]} 22. Qc4 {[%emt 0:01:19]} Bb7 {[%emt 0:00:51]} 23. Ra1 {[%emt 0:06:53]} g6 {[%emt 0:02:15]} 24. Ba4 {[%emt 0:03:28]} Bf8 {[%emt 0:04:57]} 25. Bb3 {[%emt 0:00:28]} Rd7 {[%emt 0:02:56]} 26. Rd1 {[%emt 0:00:31]} Re7 {[%emt 0:02:43]} 27. Qb5 {[%emt 0:03:22]} Qc7 {[%emt 0:01:27]} 28. Nd5 {[%emt 0:02:00]} (28. Bd5 $14) 28... Bxd5 $11 {[%emt 0:00:51]} 29. Bxd5 {[%emt 0:00:02]} Rd7 {[%emt 0:00:54]} 30. c4 {[%emt 0:00:34]} Nxe4 {[%emt 0:01:02]} 31. Nxe5 {[%emt 0:00:29]} Rxd5 $1 {[%emt 0:00:14]} 32. Rxd5 {[%emt 0:00:11]} Nf6 {[%emt 0:00:09] Inhibits Qd7.} 33. Nd7 {[%emt 0:02:37]} Nxd5 {[%emt 0:00:47]} 34. cxd5 {[%emt 0:00:05][%cal Ob5c6][%mdl 4096] Endgame KQB-KQN} Qf4 {[%emt 0:01:05]} 35. g3 {[%emt 0:00:19]} Qf5 {[%emt 0:00:34][%csl LRd5,LRh3]} 36. Qc6 {[%emt 0:01:31]} Qb1+ {[%emt 0:00:31]} 37. Kg2 {[%emt 0:00:56] Black must now prevent Nf6+. Active counter play!} Qe4+ {[%emt 0:00:06]} 38. Kh2 {[%emt 0:00:16] Threatening mate with Nf6+.} Qf5 {[%emt 0:00:04]} 39. Nf6+ {[%emt 0:01:41]} (39. Nxb6 $2 {loses.} Qxf2+ 40. Kh1 Qxg3 $19 (40... Qxb2 $2 41. Nd7 $19)) 39... Kg7 {[%emt 0:00:14]} 40. Ne8+ {[%emt 0:00:38]} Kg8 {[%emt 0:00:09]} 1/2-1/2

[Event "15th Chennai GM Open 2025"]
[Site "Chennai"]
[Date "2025.01.08"]
[Round "9.1"]
[White "Aronyak Ghosh"]
[Black "Iniyan, Pa"]
[Result "1/2-1/2"]
[ECO "E32"]
[WhiteElo "2544"]
[BlackElo "2508"]
[Annotator "TA"]
[PlyCount "39"]
[EventDate "2025.01.02"]
[EventType "swiss"]
[EventCountry "IND"]
[SourceTitle "playchess.com"]
[Source "ChessBase"]
[SourceQuality "1"]
[TimeControl "5400+30"]

{[%evp 24,39,15,12,34,18,15,18,24,-25,55,0,41,-18,49,0,24,-20]} 1. d4 {[%emt 0:03:03]} Nf6 {[%emt 0:02:57]} 2. c4 {[%emt 0:00:16]} e6 {[%emt 0:00:07]} 3. Nc3 {[%emt 0:00:30]} Bb4 {[%emt 0:00:09]} 4. Qc2 {[%emt 0:00:11]} O-O {[%emt 0:02:59]} 5. a3 {[%emt 0:01:42]} Bxc3+ {[%emt 0:00:43]} 6. Qxc3 {[%emt 0:00:07]} b6 {[%emt 0:01:35]} 7. Nf3 {[%emt 0:01:26]} Bb7 {[%emt 0:00:08]} 8. e3 {[%emt 0:00:11]} d6 {[%emt 0:00:19]} 9. Be2 {[%emt 0:00:25]} a5 {[%emt 0:18:19]} 10. b3 {[%emt 0:02:47]} Nbd7 {[%emt 0:00:35]} 11. O-O {[%emt 0:05:06]} Ne4 {[%emt 0:15:23]} 12. Qc2 {[%emt 0:02:06]} f5 {[%emt 0:11:15]} 13. Bb2 {[%emt 0:10:55]} Qe7 {[%emt 0:00:00]} 14. Rad1 {[%emt 0:06:22]} c5 {[%emt 0:03:57]} 15. a4 {[%emt 0:09:53]} Ng5 {[%emt 0:04:24]} 16. Nd2 {[%emt 0:00:07]} (16. d5 $142) 16... Ne4 {[%emt 0:00:06]} (16... f4 $11 17. Nf3 fxe3 18. fxe3 Rad8) 17. Nf3 {[%emt 0:00:02]} Ng5 {[%emt 0:00:07]} 18. Nd2 {[%emt 0:00:04]} (18. Nxg5 $14 Qxg5 19. f3) 18... Ne4 {[%emt 0:00:06]} (18... f4 $11) 19. Nf3 {[%emt 0:00:06]} Ng5 {[%emt 0:00:06]} 20. Nd2 {[%emt 0:00:04]} 1/2-1/2

[Event "15th Chennai GM Open 2025"]
[Site "Chennai"]
[Date "2025.01.08"]
[Round "9.2"]
[White "Siddharth, Jagadeesh"]
[Black "Deepan Chakkravarthy J."]
[Result "0-1"]
[ECO "B47"]
[WhiteElo "2515"]
[BlackElo "2413"]
[Annotator "TA"]
[PlyCount "100"]
[EventDate "2025.01.02"]
[EventType "swiss"]
[EventCountry "IND"]
[SourceTitle "playchess.com"]
[Source "ChessBase"]
[SourceQuality "1"]
[TimeControl "5400+30"]

{[%evp 15,100,52,73,66,70,73,67,71,76,71,71,77,80,67,62,53,67,37,70,65,70,69,72,66,65,64,63,64,69,63,69,69,70,75,72,72,74,74,75,75,76,68,75,7,18,10,10,18,12,26,38,59,65,68,56,0,0,16,15,0,0,0,0,0,0,0,0,-161,-137,-224,-280,-498,-487,-491,-497,-570,-537,-728,-687,-1553,-1253,-1973,-1573,-1477,-1434,-1376,-1273]} 1. e4 {[%emt 0:00:03]} c5 {[%emt 0:01:43]} 2. Nf3 {[%emt 0:00:07]} e6 {[%emt 0:00:09]} 3. d4 {[%emt 0:00:06]} cxd4 {[%emt 0:00:05]} 4. Nxd4 {[%emt 0:00:07]} Nc6 {[%emt 0:00:04]} 5. Nc3 {[%emt 0:00:13]} Qc7 {[%emt 0:00:08]} 6. Be2 {[%emt 0:00:22]} a6 {[%emt 0:00:17]} 7. Nxc6 {[%emt 0:00:24] B47: Sicilian: Taimanov: 5 Nc3 Qc7 6 f4, 6 g3 and 6 Be2.} Qxc6 {[%emt 0:00:43]} 8. O-O {[%emt 0:00:10]} Qc7 {[%emt 0:00:02]} 9. Be3 {[%emt 0:00:24]} Nf6 {[%emt 0:00:21]} 10. Qd4 {[%emt 0:00:06]} d6 {[%emt 0:00:13]} 11. Na4 $146 {[%emt 0:00:04]} ({Predecessor:} 11. Qd2 Bd7 12. a4 Bc6 13. f3 Be7 14. a5 O-O 15. Bb6 Qb8 16. Na4 Bxa4 17. Rxa4 Nd7 18. Be3 {1-0 Westerhof,F (1897)-Juntermanns,P (1663) Krefeld Christmas op 2024 (6)}) 11... Be7 {[%emt 0:03:31]} 12. Nb6 {[%emt 0:00:46]} Rb8 {[%emt 0:00:01]} 13. c4 {[%emt 0:00:10]} O-O {[%emt 0:00:05]} 14. Rfd1 {[%emt 0:09:02]} Rd8 {[%emt 0:04:34]} 15. f3 {[%emt 0:21:10]} Nd7 {[%emt 0:04:52]} 16. Nxd7 {[%emt 0:01:49]} Rxd7 {[%emt 0:00:38]} 17. Qb6 {[%emt 0:01:56]} Bd8 {[%emt 0:09:41]} 18. Qxc7 {[%emt 0:14:53]} Bxc7 {[%emt 0:00:06]} 19. Rd2 {[%emt 0:00:17]} Kf8 {[%emt 0:04:07]} 20. Rad1 {[%emt 0:07:53]} Ke7 {[%emt 0:00:08]} 21. b4 {[%emt 0:03:12]} b6 {[%emt 0:13:22]} 22. a4 {[%emt 0:03:16]} Rd8 {[%emt 0:03:46]} 23. b5 {[%emt 0:05:34]} a5 {[%emt 0:07:08]} 24. f4 {[%emt 0:01:14]} Bb7 {[%emt 0:01:37]} 25. Bf3 {[%emt 0:00:54]} f5 {[%emt 0:12:29]} 26. Rd4 {[%emt 0:16:33]} fxe4 {[%emt 0:05:50]} 27. Bxe4 {[%emt 0:00:00]} Bxe4 {[%emt 0:00:06]} 28. Rxe4 {[%emt 0:00:00]} g6 {[%emt 0:07:25] [#]} 29. f5 {[%emt 0:04:01]} (29. Kf2 $1 $16) 29... gxf5 $11 {[%emt 0:00:05]} 30. Bg5+ {[%emt 0:00:02]} Kd7 {[%emt 0:00:05]} 31. Rh4 {[%emt 0:00:04]} Rh8 {[%emt 0:01:36]} 32. Rh6 {[%emt 0:04:35]} Rbe8 {[%emt 0:14:36]} 33. Bf6 {[%emt 0:00:23]} Rhg8 {[%emt 0:00:04]} 34. Rxh7+ {[%emt 0:00:07]} Kc8 {[%emt 0:00:03]} 35. Rd4 {[%emt 0:04:52]} Rg6 {[%emt 0:01:05]} 36. Rf7 {[%emt 0:00:09]} e5 {[%emt 0:05:50]} 37. Rh4 {[%emt 0:00:17]} Rxf6 {[%emt 0:00:21]} 38. Rxf6 {[%emt 0:00:02]} Bd8 {[%emt 0:00:04]} 39. Rhh6 {[%emt 0:00:08]} Bxf6 {[%emt 0:00:04]} 40. Rxf6 {[%emt 0:00:03]} Kd7 {[%emt 0:00:03]} 41. c5 $2 {[%emt 0:03:18]} (41. h4 $11 {and White is okay.}) 41... bxc5 $19 {[%emt 0:01:44]} ({Don't do} 41... dxc5 42. Rxb6 c4 43. Rg6 $17) 42. Rxf5 {[%emt 0:00:01] [#]} (42. Kf2 $17) 42... Ke6 $1 $19 {[%emt 0:00:06]} 43. Rf1 $2 {[%emt 0:00:41]} (43. Rh5 {was worth a try.}) 43... c4 $19 {[%emt 0:00:01]} 44. Rc1 {[%emt 0:00:25]} d5 {[%emt 0:00:15]} 45. Kf2 {[%emt 0:00:01]} Kd6 {[%emt 0:00:39]} 46. h4 {[%emt 0:00:01]} Kc5 {[%emt 0:00:18]} 47. h5 {[%emt 0:00:01]} e4 {[%emt 0:00:40]} 48. Rb1 {[%emt 0:02:29]} e3+ {[%emt 0:02:16]} 49. Kf3 {[%emt 0:00:01]} d4 {[%emt 0:00:40]} 50. b6 {[%emt 0:00:01]} e2 {[%emt 0:00:28]} 0-1

[Event "15th Chennai GM Open 2025"]
[Site "Chennai"]
[Date "2025.01.08"]
[Round "9.3"]
[White "Shahil Dey"]
[Black "Mayank Chakraborty"]
[Result "1/2-1/2"]
[ECO "A06"]
[WhiteElo "2374"]
[BlackElo "2457"]
[Annotator "TA"]
[PlyCount "106"]
[EventDate "2025.01.02"]
[EventType "swiss"]
[EventCountry "IND"]
[SourceTitle "playchess.com"]
[Source "ChessBase"]
[SourceQuality "1"]
[TimeControl "5400+30"]

{[%evp 11,106,6,22,31,22,15,29,30,36,38,31,14,21,0,0,0,6,2,21,21,13,0,0,0,0,0,0,7,43,25,76,41,37,44,42,27,12,0,0,-17,-14,-14,-6,-13,-8,-4,-8,-22,-27,-22,-17,-35,0,0,0,-11,0,-13,-16,-17,-15,-74,-75,-73,-77,-79,-72,-68,-66,-82,-74,-78,-75,-62,-62,-93,-90,-84,-86,-90,-90,-99,-89,-85,0,-210,0,0,0,0,0,0,0,0,0,0,0]} 1. Nf3 {[%emt 0:06:25]} Nf6 {[%emt 0:00:04]} 2. b3 {[%emt 0:00:06]} d5 {[%emt 0:00:04]} 3. Bb2 {[%emt 0:00:04]} Bf5 {[%emt 0:00:05]} 4. Nh4 {[%emt 0:00:06]} Bd7 {[%emt 0:03:43]} 5. g3 {[%emt 0:00:59]} c5 {[%emt 0:01:29]} 6. Bg2 {[%emt 0:00:06]} Bc6 {[%emt 0:02:56]} 7. O-O {[%emt 0:06:13]} e6 {[%emt 0:07:16]} 8. Nf3 {[%emt 0:01:50]} Nbd7 {[%emt 0:02:29]} 9. c4 {[%emt 0:04:19]} Rc8 {[%emt 0:07:24]} 10. cxd5 {[%emt 0:05:08]} Nxd5 {[%emt 0:01:21]} 11. d4 {[%emt 0:00:47]} N5f6 {[%emt 0:04:30]} 12. Nc3 {[%emt 0:09:02]} cxd4 {[%emt 0:04:39]} 13. Nxd4 {[%emt 0:02:23]} Bxg2 {[%emt 0:00:37]} 14. Kxg2 {[%emt 0:00:05]} Bb4 {[%emt 0:03:16]} 15. Rc1 {[%emt 0:04:49]} Qa5 {[%emt 0:08:13]} 16. Ndb5 {[%emt 0:06:52]} (16. Ne4 {feels hotter.} O-O 17. Nf3 Nxe4 18. Qxd7 Rxc1 19. Rxc1 Qxa2 20. Bxg7 Qxe2 21. Bd4) 16... O-O {[%emt 0:04:00]} 17. a3 {[%emt 0:00:30]} Be7 {[%emt 0:02:13]} 18. Qd4 {[%emt 0:08:35]} a6 {[%emt 0:07:06]} 19. Nd6 {[%emt 0:00:25]} Rc6 {[%emt 0:06:12]} 20. Nce4 {[%emt 0:04:11]} Bxd6 {[%emt 0:13:01]} (20... Nb8 $11) 21. Nxd6 {[%emt 0:02:38]} Qb6 {[%emt 0:01:59]} 22. Rxc6 {[%emt 0:01:50]} Qxc6+ {[%emt 0:00:12]} 23. Kg1 {[%emt 0:01:00]} Qc2 {[%emt 0:02:46]} 24. Nxb7 {[%emt 0:06:19]} Qxb3 {[%emt 0:02:01]} 25. Na5 {[%emt 0:02:31]} Qc2 {[%emt 0:00:35]} 26. Re1 {[%emt 0:04:18]} e5 {[%emt 0:03:11]} 27. Qc3 {[%emt 0:00:27]} Rc8 {[%emt 0:00:41]} 28. Qxc2 {[%emt 0:02:09]} Rxc2 {[%emt 0:00:01]} 29. Ba1 {[%emt 0:01:21]} Kf8 {[%emt 0:00:19]} 30. f3 {[%emt 0:02:24]} Ke7 {[%emt 0:00:43]} 31. Kf2 {[%emt 0:02:04]} e4 {[%emt 0:01:59]} 32. Rb1 {[%emt 0:01:14]} exf3 {[%emt 0:00:22]} 33. Kxf3 {[%emt 0:00:02]} Rc5 {[%emt 0:00:34]} 34. Nb3 {[%emt 0:01:30]} Rf5+ {[%emt 0:01:00]} 35. Kg2 {[%emt 0:00:13]} Rb5 {[%emt 0:01:48]} 36. Kf3 {[%emt 0:00:57] [#]} (36. Nd2 $11 {remains equal.}) 36... Nc5 $1 $17 {[%emt 0:01:26]} 37. Nd2 {[%emt 0:00:42]} Nfe4 $1 {[%emt 0:02:43]} 38. Rd1 {[%emt 0:01:31]} Nxd2+ {[%emt 0:00:50]} 39. Rxd2 {[%emt 0:00:01]} Nb3 $1 {[%emt 0:01:01]} 40. Rd1 {[%emt 0:00:09]} Nxa1 {[%emt 0:00:12]} 41. Rxa1 {[%emt 0:00:01]} Rb3+ {[%emt 0:01:02]} 42. Ke4 {[%emt 0:00:01]} a5 {[%emt 0:00:11]} 43. e3 {[%emt 0:03:51]} a4 {[%emt 0:01:09]} 44. Ra2 {[%emt 0:00:22]} h5 {[%emt 0:00:56]} 45. h4 {[%emt 0:01:09]} g6 {[%emt 0:00:53]} 46. Ra1 {[%emt 0:00:26]} Kd6 {[%emt 0:01:39]} 47. Rd1+ {[%emt 0:01:16]} Kc6 {[%emt 0:00:49]} (47... Ke6 $17 48. Ra1 Kd7) 48. Rd3 $2 {[%emt 0:02:52]} (48. Rf1 $1 $11 {and White has nothing to worry.}) 48... f5+ $2 {[%emt 0:00:31]} (48... Rxd3 $19 49. Kxd3 Kd5 50. e4+ Kc5) 49. Kd4 $11 {[%emt 0:00:00]} Rxd3+ {[%emt 0:00:08]} 50. Kxd3 {[%emt 0:00:04]} Kd5 {[%emt 0:00:04]} 51. Kd2 $1 {[%emt 0:00:13]} Kd6 {[%emt 0:01:39]} (51... Ke4 $5 52. Ke2 $8 Kd5 $11) 52. Kc3 {[%emt 0:00:11]} Kc5 {[%emt 0:00:06]} 53. Kd3 {[%emt 0:00:03]} Kd5 {[%emt 0:00:04]} 1/2-1/2